fUSD/lending_fUSD_20240119
["ID","MTS","AMOUNT","RATE_DAILY","PERIOD"]
[312158552,1705673454853,-500.0,0.00022191,2]
[312158553,1705673454862,-635.55,0.00022191,2]
[312158554,1705673454872,-500.0,0.00022191,2]
[312158555,1705673454882,-733.79,0.00022191,2]
[312158556,1705673454892,-500.0,0.00022191,2]
[312158557,1705673454902,-500.0,0.00022191,2]
[312158558,1705673454911,-500.0,0.00022191,2]
[312158559,1705673454921,-590.44,0.00022191,2]
[312158560,1705673454931,-2138.94,0.00022191,2]
[312158561,1705673454941,-500.0,0.00022191,2]
[312158562,1705673454951,-1204.52,0.00022191,2]
[312158563,1705673454963,-500.0,0.00022191,2]
[312158564,1705673454973,-500.0,0.00022191,2]
[312158565,1705673454982,-1015.21,0.00022191,2]
[312158566,1705673454991,-500.0,0.00022191,2]
[312158567,1705673455002,-500.0,0.00022191,2]
[312158568,1705673455011,-588.34,0.00022191,2]
[312158569,1705673455020,-500.0,0.00022191,2]
[312158570,1705673455030,-500.0,0.00022191,2]
[312158571,1705673455039,-964.03,0.00022191,2]
[312158572,1705673455048,-838.2,0.00022191,2]
[312158573,1705673455058,-500.0,0.00022191,2]
[312158574,1705673455067,-887.74,0.00022191,2]
[312158575,1705673455076,-500.0,0.00022191,2]
[312158576,1705673455085,-594.81,0.00022191,2]
[312158577,1705673455094,-500.0,0.00022191,2]
[312158578,1705673455103,-500.0,0.00022191,2]
[312158579,1705673455113,-500.0,0.00022191,2]
[312158580,1705673455122,-500.0,0.00022191,2]
[312158581,1705673455131,-661.64,0.00022191,2]
[312158582,1705673455140,-515.55,0.00022191,2]
[312158583,1705673455150,-500.0,0.00022191,2]
[312158584,1705673455159,-651.67,0.00022191,2]
[312158585,1705673455168,-884.36,0.00022191,2]
[312158586,1705673455178,-500.0,0.00022191,2]
[312158587,1705673455188,-731.43,0.00022191,2]
[312158588,1705673455197,-612.55,0.00022191,2]
[312158589,1705673455207,-500.0,0.00022191,2]
[312158590,1705673455217,-500.0,0.00022191,2]
[312158591,1705673455226,-775.08,0.00022191,2]
[312158592,1705673455236,-500.0,0.00022191,2]
[312158593,1705673455245,-500.0,0.00022191,2]
[312158594,1705673455255,-500.0,0.00022191,2]
[312158595,1705673455265,-957.4,0.00022191,2]
[312158596,1705673455274,-500.0,0.00022191,2]
[312158597,1705673455284,-500.0,0.00022191,2]
[312158598,1705673455294,-1134.65,0.00022191,2]
[312158599,1705673455303,-676.39,0.00022191,2]
[312158600,1705673455313,-1695.84,0.00022191,2]
[312158601,1705673455323,-473.67,0.00022191,2]
[312158602,1705673455332,-500.0,0.00022191,2]
[312158603,1705673455342,-664.19,0.00022191,2]
[312158604,1705673455352,-500.0,0.00022191,2]
[312158605,1705673455362,-500.0,0.00022191,2]
[312158606,1705673455371,-500.0,0.00022191,2]
[312158607,1705673455381,-500.0,0.00022191,2]
[312158608,1705673455392,-500.0,0.00022191,2]
[312158609,1705673455402,-804.51,0.00022191,2]
[312158610,1705673455413,-2109.06,0.00022191,2]
[312158611,1705673455423,-807.1,0.00022191,2]
[312158612,1705673455432,-1000.89,0.00022191,2]
[312158613,1705673455443,-500.0,0.00022191,2]
[312158614,1705673455452,-500.0,0.00022191,2]
[312158615,1705673455463,-564.8,0.00022191,2]
[312158616,1705673455473,-1172.19,0.00022191,2]
[312158617,1705673455483,-969.21,0.00022191,2]
[312158618,1705673455494,-500.0,0.00022191,2]
[312158619,1705673455505,-500.0,0.00022191,2]
[312158620,1705673455515,-1959.03,0.00022191,2]
[312158621,1705673455525,-500.0,0.00022191,2]
[312158622,1705673455535,-500.0,0.00022191,2]
[312158623,1705673455546,-500.0,0.00022191,2]
[312158624,1705673455557,-1654.9,0.00022191,2]
[312158625,1705673455567,-3245.13,0.00022191,2]
[312158626,1705673455577,-500.0,0.00022191,2]
[312158627,1705673455588,-639.63,0.00022191,2]
[312158628,1705673455598,-500.0,0.00022191,2]
[312158629,1705673455608,-922.33,0.00022191,2]
[312158630,1705673455619,-1467.01,0.00022191,2]
[312158631,1705673455628,-500.0,0.00022191,2]
[312158632,1705673455638,-851.34,0.00022191,2]
[312158633,1705673455648,-944.72,0.00022191,2]
[312158634,1705673455658,-500.0,0.00022191,2]
[312158635,1705673455669,-500.0,0.00022191,2]
[312158636,1705673455678,-6358.64,0.00022191,2]
[312158637,1705673455688,-1277.86,0.00022191,2]
[312158638,1705673455697,-228.39,0.00022191,2]
[312158639,1705673455707,-500.0,0.00022191,2]
[312158640,1705673455847,-500.0,0.00022191,2]
[312158641,1705673455857,-500.0,0.00022191,2]
[312158642,1705673455867,-500.0,0.00022191,2]
[312158643,1705673455877,-1038.66,0.00022191,2]
[312158644,1705673455887,-500.0,0.00022191,2]
[312158645,1705673455897,-500.0,0.00022191,2]
[312158646,1705673455907,-1787.47,0.00022191,2]
[312158647,1705673455917,-1723.42,0.00022191,2]
[312158648,1705673455927,-350.36781176,0.00022191,2]
[312158649,1705673455937,-766.66,0.00022191,2]
[312158650,1705673455947,-860.57,0.00022191,2]
[312158651,1705673455959,-500.0,0.00022191,2]
[312158652,1705673455969,-1489.45,0.00022191,2]
[312158653,1705673455980,-1260.89,0.00022191,2]
[312158654,1705673455990,-1636.94,0.00022191,2]
[312158655,1705673456002,-1353.06,0.00022191,5]
[312158656,1705673456012,-500.0,0.00022191,2]
[312158657,1705673456022,-1741.96,0.00022191,2]
[312158658,1705673456032,-500.0,0.00022191,2]
[312158659,1705673456044,-2437.39,0.00022191,2]
[312158660,1705673456055,-2607.51,0.00022191,2]
[312158661,1705673456066,-500.0,0.00022191,2]
[312158662,1705673456075,-500.0,0.00022191,2]
[312158663,1705673456085,-500.0,0.00022191,2]
[312158664,1705673456095,-500.0,0.00022191,2]
[312158665,1705673456105,-500.0,0.00022191,2]
[312158666,1705673456115,-2618.51,0.00022191,2]
[312158667,1705673456125,-500.0,0.00022191,2]
[312158668,1705673456135,-1141.08,0.00022191,2]
[312158669,1705673456145,-500.0,0.00022191,2]
[312158670,1705673456155,-953.38,0.00022191,2]
[312158671,1705673456164,-500.0,0.00022191,2]
[312158672,1705673456175,-1368.1,0.00022191,2]
[312158673,1705673456186,-538.17,0.00022191,2]
[312158674,1705673456199,-500.0,0.00022191,2]
[312158675,1705673456209,-500.0,0.00022191,2]
[312158676,1705673456219,-500.0,0.00022191,2]
[312158677,1705673456229,-500.0,0.00022191,2]
[312158678,1705673456239,-6032.42,0.00022191,2]
[312158679,1705673456250,-962.32,0.00022191,2]
[312158680,1705673456262,-500.0,0.00022191,2]
[312158681,1705673456278,-4068.53,0.00022191,2]
[312158682,1705673456287,-500.0,0.00022191,2]
[312158683,1705673456297,-500.0,0.00022191,2]
[312158684,1705673456306,-1049.77,0.00022191,2]
[312158685,1705673456316,-8327.73,0.00022191,2]
[312158686,1705673456325,-649.47,0.00022191,2]
[312158687,1705673456335,-624.28,0.00022191,2]
[312158688,1705673456345,-500.0,0.00022191,2]
[312158689,1705673456355,-500.0,0.00022191,2]
[312158690,1705673456369,-1850.3,0.00022191,2]
[312158691,1705673456379,-500.0,0.00022191,2]
[312158692,1705673456389,-605.41,0.00022191,2]
[312158693,1705673456399,-2352.46,0.00022191,2]
[312158694,1705673456409,-500.0,0.00022191,2]
[312158695,1705673456419,-3311.03,0.00022191,2]
[312158696,1705673456429,-903.29,0.00022191,2]
[312158697,1705673456439,-500.0,0.00022191,2]
[312158698,1705673456448,-10438.87,0.00022191,2]
[312158699,1705673456458,-792.08,0.00022191,2]
[312158700,1705673456468,-500.0,0.00022191,2]
[312158701,1705673456478,-3188.18,0.00022191,2]
[312158702,1705673456489,-1563.62,0.00022191,2]
[312158703,1705673456500,-500.0,0.00022191,2]
[312158704,1705673456510,-1823.52,0.00022191,2]
[312158705,1705673456520,-979.74,0.00022191,2]
[312158706,1705673456530,-542.61,0.00022191,2]
[312158707,1705673456540,-500.0,0.00022191,2]
[312158708,1705673456550,-5071.79,0.00022191,2]
[312158709,1705673456560,-500.0,0.00022191,2]
[312158710,1705673456570,-500.0,0.00022191,2]
[312158711,1705673456580,-500.0,0.00022191,2]
[312158712,1705673456590,-500.0,0.00022191,2]
[312158713,1705673456600,-500.0,0.00022191,2]
[312158714,1705673456610,-500.0,0.00022191,2]
[312158715,1705673456619,-500.0,0.00022191,2]
[312158716,1705673456629,-1002.48,0.00022191,2]
[312158717,1705673456639,-622.94,0.00022191,2]
[312158718,1705673456649,-22069.86,0.00022191,2]
[312158719,1705673456658,-500.0,0.00022191,2]
[312158720,1705673456668,-1591.98,0.00022191,2]
[312158721,1705673456677,-2328.9,0.00022191,2]
[312158722,1705673456687,-500.0,0.00022191,2]
[312158723,1705673456697,-2961.89,0.00022191,2]
[312158724,1705673456707,-1489.79,0.00022191,2]
[312158725,1705673456717,-500.0,0.00022191,2]
[312158726,1705673456727,-781.85,0.00022191,2]
[312158727,1705673456736,-819.93,0.00022191,2]
[312158728,1705673456746,-500.0,0.00022191,2]
[312158729,1705673456756,-1080.74,0.00022191,2]
[312158730,1705673456766,-619.37,0.00022191,2]
[312158731,1705673456776,-3804.56,0.00022191,2]
[312158732,1705673456787,-500.0,0.00022191,2]
[312158733,1705673456797,-1768.38,0.00022191,2]
[312158734,1705673456807,-500.0,0.00022191,2]
[312158735,1705673456818,-626.56,0.00022191,2]
[312158736,1705673456828,-500.0,0.00022191,2]
[312158737,1705673456847,-500.0,0.00022191,2]
[312158738,1705673456859,-806.76,0.00022191,2]
[312158739,1705673456868,-500.0,0.00022191,2]
[312158740,1705673456878,-1316.84,0.00022191,2]
[312158741,1705673456888,-500.0,0.00022191,2]
[312158742,1705673456899,-2168.42,0.00022191,2]
[312158743,1705673456909,-519.15,0.00022191,2]
[312158744,1705673456920,-1425.21,0.00022191,2]
[312158745,1705673456931,-321.80630125,0.00022191,2]
[312158746,1705673456977,-178.19369875,0.00022191,2]
[312158747,1705673456988,-500.0,0.00022191,2]
[312158748,1705673456998,-500.0,0.00022191,2]
[312158749,1705673457008,-16193.34,0.00022191,2]
[312158750,1705673457019,-547.5,0.00022191,2]
[312158751,1705673457030,-500.0,0.00022191,2]
[312158752,1705673457040,-633.05,0.00022191,2]
[312158753,1705673457050,-860.33,0.00022191,2]
[312158754,1705673457061,-500.0,0.00022191,2]
[312158755,1705673457071,-827.34,0.00022191,2]
[312158756,1705673457082,-2161.74,0.00022191,2]
[312158757,1705673457092,-2206.42,0.00022191,2]
[312158758,1705673457103,-2502.13,0.00022191,2]
[312158759,1705673457113,-500.0,0.00022191,2]
[312158760,1705673457123,-500.0,0.00022191,2]
[312158761,1705673457135,-1405.64,0.00022191,2]
[312158762,1705673457145,-5665.06,0.00022191,2]
[312158763,1705673457156,-500.0,0.00022191,2]
[312158764,1705673457166,-646.02,0.00022191,2]
[312158765,1705673457177,-500.0,0.00022191,2]
[312158766,1705673457189,-941.69,0.00022191,2]
[312158767,1705673457201,-1186.21,0.00022191,2]
[312158768,1705673457212,-3031.73,0.00022191,2]
[312158769,1705673457222,-500.0,0.00022191,2]
[312158770,1705673457233,-500.0,0.00022191,2]
[312158771,1705673457243,-996.35,0.00022191,2]
[312158772,1705673457254,-908.02,0.00022191,2]
[312158773,1705673457264,-500.0,0.00022191,2]
[312158774,1705673457274,-500.0,0.00022191,2]
[312158775,1705673457284,-1386.07,0.00022191,2]
[312158776,1705673457294,-12799.82,0.00022191,2]
[312158777,1705673457305,-626.59,0.00022191,2]
[312158778,1705673457315,-553.37,0.00022191,2]
[312158779,1705673457325,-6113.32,0.00022191,2]
[312158780,1705673457336,-1307.27,0.00022191,2]
[312158781,1705673457347,-707.23,0.00022191,2]
[312158782,1705673457357,-1468.01,0.00022191,2]
[312158783,1705673457368,-538.68,0.00022191,2]
[312158784,1705673457379,-1136.95,0.00022191,2]
[312158785,1705673457390,-500.0,0.00022191,2]
[312158786,1705673457401,-858.96,0.00022191,2]
[312158787,1705673457411,-520.6,0.00022191,2]
[312158788,1705673457421,-1043.93,0.00022191,2]
[312158789,1705673457430,-500.0,0.00022191,2]
[312158790,1705673457440,-536.57,0.00022191,2]
[312158791,1705673457451,-500.0,0.00022191,2]
[312158792,1705673457462,-500.0,0.00022191,2]
[312158793,1705673457474,-1422.62,0.00022191,2]
[312158794,1705673457484,-1537.09,0.00022191,2]
[312158795,1705673457495,-500.0,0.00022191,2]
[312158796,1705673457507,-1752.61,0.00022191,2]
[312158797,1705673457518,-558.27,0.00022191,2]
[312158798,1705673457531,-500.0,0.00022191,2]
[312158799,1705673457544,-2118.65,0.00022191,2]
[312158800,1705673457554,-1415.64,0.00022191,2]
[312158801,1705673457566,-500.0,0.00022191,2]
[312158802,1705673457577,-11111.56,0.00022191,2]
[312158803,1705673457588,-500.0,0.00022191,2]
[312158804,1705673457598,-1231.0,0.00022191,2]
[312158805,1705673457609,-500.0,0.00022191,2]
[312158806,1705673457620,-500.0,0.00022191,2]
[312158807,1705673457631,-998.37,0.00022191,2]
[312158808,1705673457642,-322.83134463,0.00022191,2]
[312158809,1705673458615,-358.01197968,0.00022191,2]
[312158810,1705673459269,-364.16757287,0.00019666,2]
[312158811,1705673459280,-1385.85,0.00021917,2]
[312158812,1705673459289,-500.0,0.00021917,2]
[312158813,1705673459299,-500.0,0.00021917,2]
[312158814,1705673459309,-151.0,0.00022191,7]
[312158815,1705673459319,-1233.88242713,0.00022191,2]
[312158816,1705673459340,-151.0,0.00022191,7]
[312158817,1705673459351,-698.78108098,0.00022191,2]
[312158818,1705673459363,-591.25316758,0.00022191,2]
[312158819,1705673459379,-500.0,0.00022191,2]
[312158820,1705673459389,-446.94123368,0.00022191,2]
[312158821,1705673460056,-126.37108952,0.00021917,2]
[312158822,1705673460073,-373.62891048,0.00021917,2]
[312158823,1705673460083,-619.79876632,0.00022191,2]
[312158824,1705673460093,-456.5723232,0.00022191,2]
[312158825,1705673460110,-553.8976768,0.00022191,2]
[312158826,1705673460119,-783.09,0.00022191,2]
[312158827,1705673460128,-417.5799743,0.00022191,2]
[312158828,1705673460576,-500.0,0.00021917,2]
[312158829,1705673460586,-500.0,0.00021917,2]
[312158830,1705673460596,-82.4200257,0.00022191,2]
[312158831,1705673460606,-2570.48,0.00022191,2]
[312158832,1705673460617,-640.49,0.00022191,2]
[312158833,1705673460627,-538.59,0.00022191,2]
[312158834,1705673460637,-500.0,0.00022191,2]
[312158835,1705673460647,-680.85538428,0.00022191,2]
[312158836,1705673460659,-808.16461572,0.00022191,2]
[312158837,1705673460669,-1216.59,0.00022191,2]
[312158838,1705673460680,-720.67,0.00022191,2]
[312158839,1705673460690,-854.54,0.00022191,2]
[312158840,1705673460700,-500.0,0.00022191,2]
[312158841,1705673460709,-529.68487778,0.00022191,2]
[312158842,1705673460719,-786.19,0.00022191,2]
[312158843,1705673460729,-500.0,0.00022191,2]
[312158844,1705673460739,-90.22898345,0.00022191,2]
[312158845,1705673460752,-409.77101655,0.00022191,2]
[312158846,1705673460873,-500.0,0.00022191,2]
[312158847,1705673460883,-1499.97,0.00022191,2]
[312158848,1705673460892,-975.81,0.00022191,2]
[312158849,1705673460902,-745.51,0.00022191,2]
[312158850,1705673460911,-47.74088345,0.00022191,2]
[312158851,1705673460924,-572.07140346,0.00022191,2]
[312158852,1705673461909,-500.0,0.00021917,2]
[312158853,1705673461919,-500.0,0.00021917,2]
[312158854,1705673461928,-17.22330267,0.00022191,2]
[312158855,1705673461940,-58.94441042,0.00022191,2]
[312158856,1705673461951,-1111.27,0.00022191,2]
[312158857,1705673461964,-500.0,0.00022191,2]
[312158858,1705673461974,-2030.96386642,0.00022191,2]
[312158859,1705673461986,-296.09272813,0.00022191,2]
[312158860,1705673462036,-1165.93340545,0.00022191,2]
[312158861,1705673462045,-13379.85,0.00022191,2]
[312158862,1705673462055,-500.0,0.00022191,2]
[312158863,1705673462065,-1333.92,0.00022191,2]
[312158864,1705673462075,-1227.99,0.00022191,2]
[312158865,1705673462085,-500.0,0.00022191,2]
[312158866,1705673462094,-1356.9,0.00022191,2]
[312158867,1705673462104,-500.0,0.00022191,2]
[312158868,1705673462113,-500.0,0.00022191,2]
[312158869,1705673462123,-1504.85,0.00022191,2]
[312158870,1705673462132,-869.74,0.00022191,2]
[312158871,1705673462142,-1517.88,0.00022191,2]
[312158872,1705673462152,-500.0,0.00022191,2]
[312158873,1705673462161,-500.0,0.00022191,2]
[312158874,1705673462170,-2473.59,0.00022191,2]
[312158875,1705673462180,-616.09,0.00022191,2]
[312158876,1705673462189,-1232.03,0.00022191,2]
[312158877,1705673462199,-500.0,0.00022191,2]
[312158878,1705673462208,-500.0,0.00022191,2]
[312158879,1705673462220,-2291.57,0.00022191,2]
[312158880,1705673462230,-500.0,0.00022191,2]
[312158881,1705673462240,-500.0,0.00022191,2]
[312158882,1705673462254,-500.0,0.00022191,2]
[312158883,1705673462264,-500.0,0.00022191,2]
[312158884,1705673462274,-500.0,0.00022191,2]
[312158885,1705673462283,-1455.26,0.00022191,2]
[312158886,1705673462292,-607.84,0.00022191,2]
[312158887,1705673462301,-280.47,0.00022191,2]
[312158888,1705673462311,-961.57,0.00022191,2]
[312158889,1705673462321,-500.0,0.00022191,2]
[312158890,1705673462331,-1020.99,0.00022191,2]
[312158891,1705673462341,-1432.4,0.00022191,2]
[312158892,1705673462350,-500.0,0.00022191,2]
[312158893,1705673462360,-3172.18,0.00022191,2]
[312158894,1705673462370,-520.89,0.00022191,2]
[312158895,1705673462380,-2724.71,0.00022191,2]
[312158896,1705673462391,-1766.2,0.00022191,2]
[312158897,1705673462401,-1639.85,0.00022191,2]
[312158898,1705673462411,-3299.09,0.00022191,2]
[312158899,1705673462422,-1209.47,0.00022191,2]
[312158900,1705673462432,-500.0,0.00022191,2]
[312158901,1705673462442,-585.0,0.00022191,2]
[312158902,1705673462452,-657.25,0.00022191,2]
[312158903,1705673462463,-625.96,0.00022191,2]
[312158904,1705673462473,-500.0,0.00022191,2]
[312158905,1705673462484,-1446.47,0.00022191,2]
[312158906,1705673462493,-641.68,0.00022191,2]
[312158907,1705673462504,-1422.07,0.00022191,2]
[312158908,1705673462515,-1324.49,0.00022191,2]
[312158909,1705673462525,-556.72,0.00022191,2]
[312158910,1705673462535,-3070.91,0.00022191,2]
[312158911,1705673462543,-1959.6,0.00022191,2]
[312158912,1705673462552,-3366.87,0.00022191,2]
[312158913,1705673462563,-598.32,0.00022191,2]
[312158914,1705673462573,-623.78,0.00022191,2]
[312158915,1705673462583,-539.33,0.00022191,2]
[312158916,1705673462594,-500.0,0.00022191,2]
[312158917,1705673462605,-885.61,0.00022191,2]
[312158918,1705673462615,-2255.5,0.00022191,2]
[312158919,1705673462625,-5361.33,0.00022191,2]
[312158920,1705673462636,-607.45,0.00022191,2]
[312158921,1705673462646,-845.67,0.00022191,2]
[312158922,1705673462655,-500.0,0.00022191,2]
[312158923,1705673462666,-1713.2,0.00022191,2]
[312158924,1705673462676,-1579.98,0.00022191,2]
[312158925,1705673462686,-712.62,0.00022191,2]
[312158926,1705673462696,-500.0,0.00022191,2]
[312158927,1705673462706,-966.74,0.00022191,2]
[312158928,1705673462715,-816.98,0.00022191,2]
[312158929,1705673462725,-667.25,0.00022191,2]
[312158930,1705673462737,-696.86,0.00022191,2]
[312158931,1705673462747,-888.65,0.00022191,2]
[312158932,1705673462758,-500.0,0.00022191,2]
[312158933,1705673462768,-500.0,0.00022191,2]
[312158934,1705673462777,-500.0,0.00022191,2]
[312158935,1705673462787,-500.0,0.00022191,2]
[312158936,1705673462797,-5811.92,0.00022191,2]
[312158937,1705673462806,-989.86,0.00022191,2]
[312158938,1705673462816,-500.0,0.00022191,2]
[312158939,1705673462828,-2614.04,0.00022191,2]
[312158940,1705673462838,-1008.75,0.00022191,2]
[312158941,1705673462849,-433.63095075,0.00022191,2]
[312158942,1705673462859,-1436.28,0.00022191,2]
[312158943,1705673462869,-18111.71,0.00022191,2]
[312158944,1705673462879,-2789.76,0.00022191,2]
[312158945,1705673462889,-826.48,0.00022191,2]
[312158946,1705673462898,-3101.23,0.00022191,2]
[312158947,1705673462908,-500.0,0.00022191,2]
[312158948,1705673462918,-500.0,0.00022191,2]
[312158949,1705673462928,-976.24,0.00022191,2]
[312158950,1705673462938,-500.0,0.00022191,2]
[312158951,1705673462954,-1294.34,0.00022191,2]
[312158952,1705673462979,-500.0,0.00022191,2]
[312158953,1705673463000,-6529.85,0.00022191,2]
[312158954,1705673463014,-1857.41,0.00022191,2]
[312158955,1705673463024,-1144.08,0.00022191,2]
[312158956,1705673463036,-533.3,0.00022191,2]
[312158957,1705673463046,-1464.77,0.00022191,2]
[312158958,1705673463056,-500.0,0.00022191,2]
[312158959,1705673463066,-500.0,0.00022191,2]
[312158960,1705673463075,-1569.06,0.00022191,2]
[312158961,1705673463085,-3088.96,0.00022191,2]
[312158962,1705673463095,-996.36,0.00022191,2]
[312158963,1705673463105,-500.0,0.00022191,2]
[312158964,1705673463114,-500.0,0.00022191,2]
[312158965,1705673463123,-500.0,0.00022191,2]
[312158966,1705673463132,-500.0,0.00022191,2]
[312158967,1705673463142,-770.6,0.00022191,2]
[312158968,1705673463152,-876.13,0.00022191,2]
[312158969,1705673463161,-886.87,0.00022191,2]
[312158970,1705673463170,-500.0,0.00022191,2]
[312158971,1705673463181,-672.61,0.00022191,2]
[312158972,1705673463190,-1352.04,0.00022191,2]
[312158973,1705673463199,-1385.85,0.00022191,2]
[312158974,1705673463209,-645.22,0.00022191,2]
[312158975,1705673463218,-56.2091901,0.00022191,2]
[312158976,1705673463231,-443.7908099,0.00022191,2]
[312158977,1705673463240,-500.0,0.00022191,2]
[312158978,1705673463249,-500.0,0.00022191,2]
[312158979,1705673463260,-500.0,0.00022191,2]
[312158980,1705673463269,-500.0,0.00022191,2]
[312158981,1705673463278,-177.58,0.00022194,2]
[312158982,1705673463287,-1636.4217761,0.00022215,2]
[312158983,1705673463303,-2495.29999998,0.00022215,2]
[312158984,1705673463314,-1250.4,0.00022215,2]
[312158985,1705673463326,-10983.6528929,0.00022215,2]
[312158986,1705673463336,-158.37,0.00022216,2]
[312158987,1705673463346,-150.0,0.0002222,2]
[312158988,1705673463355,-157.38,0.00022231,2]
[312158989,1705673463364,-150.0,0.00022238,2]
[312158990,1705673463374,-150.00000005,0.0002227,2]
[312158991,1705673463384,-336.28,0.00022282,2]
[312158992,1705673463394,-470.28147694,0.00022365,5]
[312158993,1705673463403,-300.0,0.00022398,2]
[312158994,1705673463413,-418.5,0.00022398,2]
[312158995,1705673463423,-314.65,0.00022398,2]
[312158996,1705673463432,-408.64,0.00022398,2]
[312158997,1705673463442,-408.64,0.00022398,2]
[312158998,1705673463451,-406.94,0.00022398,2]
[312158999,1705673463461,-150.0,0.00022408,2]
[312159000,1705673463470,-16365.77466898,0.00022414,2]
[312159001,1705673463479,-336.28,0.00022415,2]
[312159002,1705673463489,-10000.0,0.0002242,2]
[312159003,1705673463499,-150.0,0.00022443,2]
[312159004,1705673463511,-260.97,0.00022445,2]
[312159005,1705673463522,-284.16,0.00022448,2]
[312159006,1705673463531,-500.0,0.0002246,2]
[312159007,1705673463541,-513.8,0.00022463,2]
[312159008,1705673463551,-513.8,0.00022463,2]
[312159009,1705673463561,-513.8,0.00022463,2]
[312159010,1705673463572,-513.8,0.00022463,2]
[312159011,1705673463582,-513.8,0.00022463,2]
[312159012,1705673463592,-513.8,0.00022463,2]
[312159013,1705673463602,-513.8,0.00022463,2]
[312159014,1705673463612,-513.8,0.00022463,2]
[312159015,1705673463622,-513.8,0.00022463,2]
[312159016,1705673463632,-513.8,0.00022463,2]
[312159017,1705673463643,-513.8,0.00022463,2]
[312159018,1705673463654,-513.8,0.00022464,2]
[312159019,1705673463663,-513.8,0.00022464,2]
[312159020,1705673463672,-513.8,0.00022464,2]
[312159021,1705673463682,-513.8,0.00022464,2]
[312159022,1705673463692,-513.85335108,0.00022464,2]
[312159023,1705673463701,-151.0,0.00022464,7]
[312159024,1705673463711,-151.0,0.00022465,7]
[312159025,1705673463720,-151.0,0.00022465,7]
[312159026,1705673463730,-151.0,0.00022465,7]
[312159027,1705673463739,-151.0,0.00022465,7]
[312159028,1705673463748,-151.0,0.00022465,7]
[312159029,1705673463758,-151.0,0.00022465,7]
[312159030,1705673463768,-151.0,0.00022465,7]
[312159031,1705673463777,-500.0,0.00022465,2]
[312159032,1705673463787,-546.51648547,0.00022465,2]
[312159033,1705673463796,-872.21,0.00022465,2]
[312159034,1705673463806,-500.0,0.00022465,2]
[312159035,1705673463815,-500.0,0.00022465,2]
[312159036,1705673463825,-500.0,0.00022465,2]
[312159037,1705673463834,-500.0,0.00022465,2]
[312159038,1705673463844,-500.0,0.00022465,2]
[312159039,1705673463853,-500.0,0.00022465,2]
[312159040,1705673463863,-500.0,0.00022465,2]
[312159041,1705673463872,-500.0,0.00022465,2]
[312159042,1705673463881,-500.0,0.00022465,2]
[312159043,1705673463891,-500.0,0.00022465,2]
[312159044,1705673463901,-500.0,0.00022465,2]
[312159045,1705673463910,-500.0,0.00022465,2]
[312159046,1705673463920,-579.31,0.00022465,2]
[312159047,1705673463929,-866.71,0.00022465,2]
[312159048,1705673463938,-500.0,0.00022465,2]
[312159049,1705673463948,-500.0,0.00022465,2]
[312159050,1705673463960,-513.50105473,0.00022465,2]
[312159051,1705673463969,-555.25,0.00022465,2]